fUST/lending_fUST_20250127
["ID","MTS","AMOUNT","RATE_DAILY","PERIOD"]
[350545202,1737958239868,-572.59,0.00020647,2]
[350545204,1737958239877,-1444.04312581,0.00020647,2]
[350545207,1737958239893,-5148.85687419,0.00020647,2]
[350545209,1737958239903,-500.0,0.00020647,2]
[350545211,1737958239912,-805.41,0.00020647,2]
[350545213,1737958239922,-500.0,0.00020647,2]
[350545215,1737958239931,-500.0,0.00020647,2]
[350545217,1737958239940,-4420.86,0.00020647,2]
[350545219,1737958239949,-500.0,0.00020647,2]
[350545221,1737958239958,-500.0,0.00020647,2]
[350545223,1737958239967,-500.0,0.00020647,2]
[350545224,1737958239976,-500.0,0.00020684,2]
[350545226,1737958239985,-1766.37,0.00020684,2]
[350545229,1737958239995,-500.0,0.00020684,2]
[350545231,1737958240004,-987.83,0.00020684,2]
[350545233,1737958240014,-2881.37,0.00020684,2]
[350545235,1737958240024,-590.16,0.00020684,2]
[350545237,1737958240034,-531.63,0.00020684,2]
[350545239,1737958240043,-1235.94,0.00020684,2]
[350545241,1737958240053,-141.13358898,0.00020684,2]
[350545253,1737958240155,-500.0,0.00020099,2]
[350545255,1737958240170,-360.25641102,0.00020684,2]
[350545257,1737958240180,-500.0,0.00020684,2]
[350545259,1737958240189,-999.78,0.00020684,2]
[350545261,1737958240198,-500.0,0.00020684,2]
[350545263,1737958240208,-538.32,0.00020684,2]
[350545265,1737958240216,-1022.62,0.00020705,2]
[350545267,1737958240226,-500.0,0.00020705,2]
[350545269,1737958240235,-221.0,0.00020784,2]
[350545271,1737958240244,-500.0,0.00020784,2]
[350545273,1737958240255,-500.0,0.00020784,2]
[350545275,1737958240264,-230.1,0.00020784,2]
[350545277,1737958240274,-973.13,0.00020784,2]
[350545279,1737958240283,-500.0,0.00020784,2]
[350545281,1737958240292,-500.0,0.00020784,2]
[350545283,1737958240301,-500.0,0.00020784,2]
[350545285,1737958240311,-500.0,0.00020784,2]
[350545287,1737958240320,-500.0,0.00020784,2]
[350545290,1737958240329,-581.95,0.00020784,2]
[350545292,1737958240339,-500.0,0.00020784,2]
[350545294,1737958240348,-500.0,0.00020784,2]
[350545297,1737958240358,-500.0,0.00020784,2]
[350545299,1737958240367,-500.0,0.00020784,2]
[350545301,1737958240376,-500.0,0.00020784,2]
[350545303,1737958240385,-500.0,0.00020784,2]
[350545305,1737958240395,-512.96,0.00020784,2]
[350545307,1737958240404,-181.92,0.00020784,2]
[350545309,1737958240413,-500.0,0.00020784,2]
[350545311,1737958240423,-500.0,0.00020784,2]
[350545313,1737958240433,-500.0,0.00020784,2]
[350545314,1737958240444,-504.04205581,0.00020784,2]
[350545316,1737958240453,-500.0,0.00020784,2]
[350545318,1737958240463,-190.68,0.00020784,2]
[350545320,1737958240473,-592.73152744,0.00020784,2]
[350545322,1737958240483,-699.34,0.00020784,2]
[350545325,1737958240492,-325.56,0.00020784,2]
[350545327,1737958240502,-504.13960063,0.00020784,2]
[350545329,1737958240513,-500.0,0.00020784,2]
[350545331,1737958240523,-500.0,0.00020784,2]
[350545333,1737958240532,-500.0,0.00020784,2]
[350545335,1737958240541,-500.0,0.00020784,2]
[350545337,1737958240551,-500.0,0.00020784,2]
[350545339,1737958240560,-500.0,0.00020784,2]
[350545341,1737958240570,-1080.33,0.00020784,2]
[350545342,1737958240578,-3421.42,0.00020784,2]
[350545344,1737958240588,-500.0,0.00020784,2]
[350545346,1737958240597,-6592.9,0.00020784,2]
[350545348,1737958240606,-232.15,0.00020784,2]
[350545350,1737958240616,-805.41,0.00020784,2]
[350545352,1737958240625,-500.0,0.00020784,2]
[350545354,1737958240634,-500.0,0.00020784,2]
[350545356,1737958240644,-4420.86,0.00020784,2]
[350545358,1737958240653,-500.0,0.00020784,2]
[350545360,1737958240662,-500.0,0.00020784,2]
[350545362,1737958240672,-500.0,0.00020784,2]
[350545373,1737958240769,-500.0,0.00020821,2]
[350545375,1737958240780,-1766.37,0.00020821,2]
[350545377,1737958240790,-500.0,0.00020821,2]
[350545379,1737958240799,-987.83,0.00020821,2]
[350545382,1737958240809,-2881.37,0.00020821,2]
[350545384,1737958240818,-590.16,0.00020821,2]
[350545385,1737958240827,-531.63,0.00020821,2]
[350545387,1737958240837,-1235.94,0.00020821,2]
[350545389,1737958240847,-501.39,0.00020821,2]
[350545391,1737958240857,-500.0,0.00020821,2]
[350545394,1737958240867,-999.78,0.00020821,2]
[350545396,1737958240877,-500.0,0.00020821,2]
[350545397,1737958240887,-538.32,0.00020821,2]
[350545400,1737958240896,-1022.62,0.00020842,2]
[350545401,1737958240905,-500.0,0.00020842,2]
[350545404,1737958240915,-500.0,0.00020921,2]
[350545405,1737958240924,-274.75,0.00020921,2]
[350545407,1737958240933,-973.13,0.00020921,2]
[350545409,1737958240942,-500.0,0.00020921,2]
[350545411,1737958240951,-500.0,0.00020921,2]
[350545414,1737958240961,-500.0,0.00020921,2]
[350545416,1737958240970,-500.0,0.00020921,2]
[350545418,1737958240980,-500.0,0.00020921,2]
[350545420,1737958240989,-582.9,0.00020921,2]
[350545422,1737958240999,-500.0,0.00020921,2]
[350545424,1737958241009,-500.0,0.00020921,2]
[350545426,1737958241019,-500.0,0.00020921,2]
[350545428,1737958241028,-500.0,0.00020921,2]
[350545430,1737958241037,-500.0,0.00020921,2]
[350545432,1737958241047,-500.0,0.00020921,2]
[350545433,1737958241056,-409.89,0.00020921,2]
[350545434,1737958241065,-500.0,0.00020921,2]
[350545435,1737958241074,-699.34,0.00020921,2]
[350545436,1737958241084,-500.0,0.00020921,2]
[350545437,1737958241094,-500.0,0.00020921,2]
[350545438,1737958241103,-500.0,0.00020921,2]
[350545439,1737958241113,-290.03,0.00020921,2]
[350545440,1737958241122,-500.0,0.00020921,2]
[350545441,1737958241133,-500.0,0.00020921,2]
[350545442,1737958241143,-1080.33,0.00020921,2]
[350545443,1737958241152,-3421.42,0.00020921,2]
[350545444,1737958241162,-500.0,0.00020921,2]
[350545445,1737958241171,-6592.9,0.00020921,2]
[350545446,1737958241181,-805.41,0.00020921,2]
[350545447,1737958241191,-500.0,0.00020921,2]
[350545448,1737958241200,-500.0,0.00020921,2]
[350545450,1737958241209,-4420.86,0.00020921,2]
[350545452,1737958241219,-500.0,0.00020921,2]
[350545454,1737958241227,-500.0,0.00020921,2]
[350545456,1737958241237,-500.0,0.00020958,2]
[350545458,1737958241246,-1766.37,0.00020958,2]
[350545460,1737958241255,-470.64,0.00020958,2]
[350545463,1737958241265,-987.83,0.00020958,2]
[350545465,1737958241275,-1029.81540779,0.00020958,2]
[350545477,1737958241382,-1758.15974404,0.00020958,2]
[350545480,1737958241399,-93.39484817,0.00020958,2]
[350545482,1737958241410,-590.16,0.00020958,2]
[350545484,1737958241419,-47.02068864,0.00020958,2]
[350545486,1737958241434,-484.60931136,0.00020958,2]
[350545488,1737958241444,-1235.94,0.00020958,2]
[350545490,1737958241454,-501.39,0.00020958,2]
[350545492,1737958241464,-500.0,0.00020958,2]
[350545494,1737958241474,-999.78,0.00020958,2]
[350545496,1737958241484,-500.0,0.00020958,2]
[350545498,1737958241493,-538.32,0.00020958,2]
[350545500,1737958241502,-249.96068864,0.00020973,2]
[350545698,1737958243188,-634.21076995,0.00020099,2]
[350545700,1737958243198,-500.0,0.00020099,2]
[350545702,1737958243208,-500.0,0.00020099,2]
[350545704,1737958243218,-500.0,0.00020236,2]
[350545707,1737958243227,-250.55654476,0.00020973,2]
[350545709,1737958243237,-218.99871271,0.00020973,2]
[350545710,1737958243247,-503.05968334,0.00020973,2]
[350545712,1737958243256,-500.0,0.00020973,2]
[350545715,1737958243265,-470.34907412,0.00020973,2]
[350545716,1737958243275,-500.0,0.00020973,2]
[350545718,1737958243284,-1022.62,0.00020979,2]
[350545720,1737958243293,-500.0,0.00020979,2]
[350545722,1737958243303,-500.0,0.00020994,2]
[350545724,1737958243313,-500.0,0.00020994,2]
[350545726,1737958243322,-361.26192974,0.00020995,2]
[350545729,1737958243333,-138.73807026,0.00020995,2]
[350545731,1737958243344,-500.0,0.00020995,2]
[350545733,1737958243353,-262.78936139,0.00020995,2]
[350545735,1737958243363,-187.7885143,0.00020995,2]
[350545737,1737958243372,-500.0,0.00020995,2]
[350545739,1737958243381,-500.0,0.00020995,2]
[350545741,1737958243391,-500.0,0.00020995,2]
[350545743,1737958243400,-500.0,0.00020995,2]
[350545745,1737958243410,-500.0,0.00020995,2]
[350545747,1737958243419,-489.26622505,0.00020995,2]
[350545752,1737958243466,-10.73377495,0.00020995,2]
[350545754,1737958243479,-500.0,0.00020995,2]
[350545756,1737958243488,-500.0,0.00020995,2]
[350545758,1737958243498,-500.0,0.00020995,2]
[350545760,1737958243508,-500.0,0.00020995,2]
[350545762,1737958243517,-500.0,0.00020995,2]
[350545764,1737958243527,-471.72543951,0.00020995,2]
[350545767,1737958243536,-500.0,0.00020995,2]
[350545769,1737958243545,-500.0,0.00020995,2]
[350545770,1737958243555,-500.0,0.00020995,2]
[350545773,1737958243564,-500.0,0.00020995,2]
[350545774,1737958243574,-500.0,0.00020995,2]
[350545777,1737958243584,-500.0,0.00020995,2]
[350545779,1737958243593,-278.82248848,0.00020995,2]
[350545781,1737958243605,-221.17751152,0.00020995,2]
[350545783,1737958243614,-500.0,0.00020995,2]
[350545784,1737958243624,-500.0,0.00020995,2]
[350545786,1737958243633,-500.0,0.00020995,2]
[350545788,1737958243643,-278.82248848,0.00020995,2]
[350545790,1737958243654,-221.17751152,0.00020995,2]
[350545792,1737958243663,-500.0,0.00020995,2]
[350545794,1737958243673,-598.68660616,0.00020995,2]
[350545796,1737958243682,-500.0,0.00020995,2]
[350545798,1737958243692,-500.0,0.00020995,2]
[350545800,1737958243701,-500.0,0.00020995,2]
[350545802,1737958243711,-500.0,0.00020995,2]
[350545804,1737958243721,-500.0,0.00020995,2]
[350545806,1737958243730,-500.0,0.00020995,2]
[350545808,1737958243740,-500.0,0.00020995,2]
[350545810,1737958243750,-500.0,0.00020995,2]
[350545812,1737958243760,-500.0,0.00020995,2]
[350545814,1737958243769,-500.0,0.00020995,2]
[350545816,1737958243779,-165.41,0.00020995,2]
[350545818,1737958243788,-500.0,0.00020996,2]
[350545820,1737958243798,-500.0,0.00020996,2]
[350545822,1737958243807,-500.0,0.00020996,2]
[350545824,1737958243817,-500.0,0.00020996,2]
[350545827,1737958243827,-500.0,0.00020996,2]
[350545828,1737958243836,-500.0,0.00020996,2]
[350545831,1737958243848,-500.0,0.00020996,2]
[350545833,1737958243859,-500.0,0.00020996,2]
[350545835,1737958243869,-500.0,0.00020996,2]
[350545837,1737958243878,-500.0,0.00020996,2]
[350545839,1737958243887,-500.0,0.00020996,2]
[350545841,1737958243897,-500.0,0.00020996,2]
[350545843,1737958243907,-500.0,0.00020996,2]
[350545845,1737958243917,-500.0,0.00020996,2]
[350545847,1737958243927,-500.0,0.00020996,2]
[350545849,1737958243936,-500.0,0.00020996,2]
[350545851,1737958243946,-500.0,0.00020996,2]
[350545853,1737958243955,-500.0,0.00020996,2]
[350545855,1737958243964,-500.0,0.00020996,2]
[350545857,1737958243974,-500.0,0.00020996,2]
[350545859,1737958243983,-500.0,0.00020996,2]
[350545861,1737958243992,-500.0,0.00020996,2]
[350545863,1737958244001,-500.0,0.00020996,2]
[350545864,1737958244011,-500.0,0.00020996,2]
[350545867,1737958244021,-500.0,0.00020996,2]
[350545869,1737958244032,-500.0,0.00020996,2]
[350545879,1737958244126,-500.0,0.00020997,2]
[350545881,1737958244136,-500.0,0.00020997,2]
[350545883,1737958244145,-500.0,0.00020997,2]
[350545884,1737958244155,-500.0,0.00020997,2]
[350545885,1737958244165,-500.0,0.00020997,2]
[350545886,1737958244174,-500.0,0.00020997,2]
[350545887,1737958244183,-500.0,0.00020997,2]
[350545888,1737958244193,-500.0,0.00020997,2]
[350545889,1737958244202,-500.0,0.00020997,2]
[350545890,1737958244213,-500.0,0.00020997,2]
[350545891,1737958244222,-500.0,0.00020997,2]
[350545892,1737958244231,-500.0,0.00020997,2]
[350545893,1737958244240,-500.0,0.00020997,2]
[350545894,1737958244249,-500.0,0.00020997,2]
[350545895,1737958244258,-500.0,0.00020997,2]
[350545896,1737958244266,-500.0,0.00020997,2]
[350545897,1737958244275,-533.13754084,0.00020997,2]
[350545898,1737958244284,-500.0,0.00020997,2]
[350545899,1737958244293,-500.0,0.00020997,2]
[350545900,1737958244303,-561.09434186,0.00020997,2]
[350545901,1737958244312,-210.26907108,0.00020997,2]
[350545903,1737958244321,-500.0,0.00020997,2]
[350545905,1737958244330,-500.0,0.00020997,2]
[350545907,1737958244340,-279.32207161,0.00020997,2]
[350545909,1737958244349,-500.0,0.00020997,2]
[350545911,1737958244359,-500.0,0.00020997,2]
[350545913,1737958244368,-500.0,0.00020997,2]
[350545915,1737958244378,-500.0,0.00020997,2]
[350545917,1737958244387,-500.0,0.00020997,2]
[350545919,1737958244397,-500.0,0.00020997,2]
[350545921,1737958244407,-500.0,0.00020997,2]
[350545923,1737958244416,-508.14954707,0.00020997,2]
[350545925,1737958244425,-500.0,0.00020997,2]
[350545927,1737958244439,-500.0,0.00020997,2]
[350545929,1737958244448,-500.0,0.00020997,2]
[350545931,1737958244458,-500.0,0.00020997,2]
[350545933,1737958244467,-500.0,0.00020997,2]
[350545935,1737958244477,-500.0,0.00020997,2]
[350545937,1737958244487,-500.0,0.00020997,2]
[350545939,1737958244496,-500.0,0.00020997,2]
[350545941,1737958244505,-501.07376496,0.00020997,2]
[350545943,1737958244517,-500.0,0.00020997,2]
[350545945,1737958244527,-198.92680558,0.00020997,2]
[350545947,1737958244536,-500.0,0.00020997,2]
[350545949,1737958244545,-500.0,0.00020997,2]
[350545951,1737958244554,-500.0,0.00020997,2]
[350545953,1737958244564,-500.0,0.00020997,2]
[350545955,1737958244573,-500.0,0.00020997,2]
[350545957,1737958244583,-500.0,0.00020997,2]
[350545959,1737958244593,-500.0,0.00020997,2]
[350545961,1737958244603,-225.78946961,0.00020997,2]
[350545963,1737958244612,-500.0,0.00020997,2]
[350545965,1737958244622,-500.0,0.00020997,2]
[350545967,1737958244631,-500.0,0.00020997,2]
[350545969,1737958244640,-500.0,0.00020997,2]
[350545971,1737958244650,-416.1396785,0.00020997,2]
[350545973,1737958244663,-83.8603215,0.00020997,2]
[350545975,1737958244672,-500.0,0.00020997,2]
[350545977,1737958244681,-500.0,0.00020997,2]
[350545979,1737958244691,-500.0,0.00020997,2]
[350545981,1737958244700,-500.0,0.00020997,2]
[350545983,1737958244711,-595.04977387,0.00020997,2]
[350545985,1737958244719,-500.0,0.00020997,2]
[350545987,1737958244729,-500.0,0.00020997,2]
[350545989,1737958244739,-433.10916356,0.00020997,2]
[350545991,1737958244748,-500.0,0.00020997,2]
[350545993,1737958244758,-510.11911414,0.00020997,2]
[350545995,1737958244768,-500.0,0.00020997,2]
[350545997,1737958244778,-503.58591826,0.00020998,2]
[350546000,1737958244788,-440.92979906,0.00020998,2]
[350546002,1737958244797,-503.18762165,0.00020998,2]
[350546004,1737958244806,-500.0,0.00020998,2]
[350546006,1737958244816,-500.45486258,0.00020998,2]
[350546007,1737958244825,-31.97615328,0.00020998,2]
[350546010,1737958244837,-473.27373939,0.00020998,2]
[350546012,1737958244846,-620.21767581,0.00020998,2]
[350546014,1737958244857,-506.81487932,0.00020998,2]
[350546016,1737958244866,-138.95986423,0.00020998,2]
[350546018,1737958244877,-364.51767264,0.00020998,2]
[350546020,1737958244887,-228.61031789,0.00020998,2]
[350546022,1737958244897,-500.0,0.00020998,2]
[350546024,1737958244906,-500.0,0.00020998,2]
[350546026,1737958244915,-503.61152882,0.00020998,2]
[350546028,1737958244925,-413.51048065,0.00021,2]
[350546030,1737958244936,-2586.48951935,0.00021,2]
[350546032,1737958244946,-151.0,0.00021,4]
[350546034,1737958244955,-3000.0,0.0002101,2]
[350546036,1737958244964,-3000.0,0.0002102,2]
[350546039,1737958244974,-3000.0,0.0002103,2]
[350546041,1737958244983,-3000.0,0.0002104,2]
[350546043,1737958244992,-1489.14502141,0.0002105,2]
[350546045,1737958245003,-1510.85497859,0.0002105,2]
[350546047,1737958245013,-500.0,0.00021058,2]
[350546049,1737958245022,-685.56635887,0.00021058,2]
[350546210,1737958246074,-500.0,0.00019472,2]
[350546212,1737958246083,-105.0,0.00019609,2]
[350546215,1737958246095,-394.0,0.00019609,2]
[350546217,1737958246107,-1.0,0.00019609,2]
[350546219,1737958246116,-500.0,0.00019746,2]
[350546221,1737958246126,-520.93,0.00019883,2]
[350546223,1737958246135,-500.0,0.00019999,2]
[350546225,1737958246145,-500.0,0.00020136,2]
[350546227,1737958246154,-500.0,0.00020273,2]
[350546229,1737958246163,-287.56364113,0.00021058,2]
[350546231,1737958246172,-109.82376296,0.00021058,2]
[350546233,1737958246183,-390.17623704,0.00021058,2]
[350546235,1737958246192,-643.1,0.00021058,2]
[350546237,1737958246202,-500.0,0.00021058,2]
[350546239,1737958246211,-500.0,0.00021058,2]
[350546241,1737958246219,-438.8,0.00021058,2]
[350546243,1737958246229,-500.0,0.00021058,2]
[350546245,1737958246238,-500.0,0.00021058,2]
[350546248,1737958246247,-500.0,0.00021058,2]
[350546251,1737958246256,-547.29,0.00021058,2]
[350546254,1737958246266,-393.51331598,0.00021058,2]
[350546258,1737958246277,-106.48668402,0.00021058,2]
[350546261,1737958246286,-500.0,0.00021058,2]
[350546264,1737958246295,-500.0,0.00021058,2]
[350546267,1737958246304,-500.0,0.00021058,2]
[350546270,1737958246313,-500.0,0.00021058,2]
[350546273,1737958246322,-507.56,0.00021058,2]
[350546276,1737958246331,-500.0,0.00021058,2]
[350546279,1737958246340,-359.34725326,0.00021058,2]
[350546281,1737958246349,-12.00606332,0.00021058,2]
[350546285,1737958246360,-1068.32393668,0.00021058,2]
[350546288,1737958246369,-3421.42,0.00021058,2]
[350546291,1737958246379,-500.0,0.00021058,2]
[350546294,1737958246388,-5010.25606331,0.00021058,2]
[350549277,1737958885578,226.675554,0.00013973,2]
[350549279,1737959135104,-401.34246296,0.00018103,2]
[350549280,1737959135129,-90.15479972,0.00018286,2]
[350549282,1737959139082,-302.00443114,0.00018286,2]
[350549291,1737959225144,-262.962441,0.00018351,2]
[350549292,1737959225170,-3336.4439085,0.00018471,2]
[350549293,1737959225192,-1095.50688526,0.00018688,2]
[350549294,1737959232095,-205.46013554,0.00018688,2]
[350549295,1737959232116,-266.5495878,0.000189,2]
[350549296,1737959232137,-205.11449252,0.0001892,2]
[350549297,1737959251105,-171.41971054,0.0001892,2]
[350549298,1737959251136,-2535.49041229,0.00019,2]
[350549312,1737959346109,-250.0,0.00018464,2]
[350549313,1737959346131,-311.79870358,0.0001881,2]
[350549314,1737959346153,-1468.59275233,0.00019,2]
[350549315,1737959346173,-190.0,0.00019,2]
[350549316,1737959346194,-235.659669,0.00019178,2]
[350549317,1737959346214,-500.0,0.00019468,2]
[350549318,1737959346351,-1333.99,0.00019468,2]
[350549319,1737959346373,-300.0,0.00019468,2]
[350549320,1737959346396,-500.0,0.00019469,2]
[350549321,1737959346417,-1000.0,0.00019469,7]
[350549322,1737959346439,-688.17,0.00019469,2]
[350549323,1737959346460,-500.0,0.00019469,2]
[350549324,1737959346483,-750.98,0.00019469,2]
[350549325,1737959346504,-500.0,0.00019469,2]
[350549326,1737959346524,-500.0,0.00019469,2]
[350549327,1737959346546,-500.0,0.00019469,2]
[350549328,1737959346567,-500.0,0.00019469,2]
[350549329,1737959346590,-500.0,0.00019469,2]
[350549330,1737959346612,-500.0,0.00019469,2]
[350549331,1737959346634,-500.0,0.00019469,2]
[350549332,1737959346655,-500.0,0.00019469,2]
[350549333,1737959346678,-2376.93,0.00019469,2]
[350549334,1737959346700,-500.0,0.00019469,2]
[350549335,1737959346722,-500.0,0.00019469,2]
[350549336,1737959346743,-186.97777392,0.00019469,2]
[350549337,1737959353095,-3156.76,0.0001946,3]
[350549338,1737959353119,-313.02222608,0.00019469,2]
[350549339,1737959353143,-500.0,0.00019469,2]
[350549340,1737959353168,-4007.34,0.00019469,2]
[350549341,1737959353193,-1355.78,0.00019469,2]
[350549342,1737959353215,-500.0,0.00019469,2]
[350549343,1737959353240,-1761.59,0.00019469,2]
[350549344,1737959353265,-847.49,0.00019469,2]
[350549345,1737959353287,-730.91,0.00019469,2]
[350549346,1737959353308,-500.0,0.00019469,2]
[350549347,1737959353330,-500.0,0.00019469,2]
[350549348,1737959353351,-500.0,0.00019469,2]
[350549349,1737959353372,-500.0,0.00019469,2]
[350549350,1737959353394,-500.0,0.00019469,2]
[350549351,1737959353416,-1490.74,0.00019469,2]
[350549352,1737959353438,-500.0,0.00019469,2]
[350549353,1737959353460,-754.94,0.00019469,2]
[350549354,1737959353484,-500.0,0.00019469,2]
[350549355,1737959353508,-1734.95,0.00019469,2]
[350549356,1737959353534,-2780.86,0.00019469,2]
[350549357,1737959353555,-500.0,0.00019469,2]
[350549358,1737959353578,-500.0,0.00019469,2]
[350549359,1737959353601,-871.86,0.00019469,2]
[350549360,1737959353623,-871.86,0.00019469,2]
[350549361,1737959353645,-871.86,0.00019469,2]
[350549362,1737959353666,-500.0,0.00019469,2]
[350549363,1737959353687,-500.0,0.00019469,2]
[350549364,1737959353707,-851.62,0.00019469,2]
[350549365,1737959353730,-1416.73,0.00019469,2]
[350549366,1737959353751,-500.0,0.00019469,2]
[350549367,1737959353776,-500.0,0.00019469,2]
[350549368,1737959353799,-713.52,0.00019469,2]
[350549369,1737959353823,-500.0,0.00019469,2]
[350549370,1737959353843,-168.25042104,0.00019469,2]
[350549371,1737959353865,-576.97512445,0.00019469,2]
[350549372,1737959353885,-500.0,0.00019469,2]
[350549373,1737959353910,-500.0,0.00019469,2]
[350549374,1737959353931,-386.40738673,0.00019469,2]
[350549376,1737959369105,-1578.38,0.0001946,3]
[350549377,1737959369126,-659.49,0.00019468,2]
[350549378,1737959369148,-500.0,0.00019468,2]
[350549379,1737959369170,-821.4,0.00019469,2]
[350549380,1737959369191,-500.0,0.00019469,2]
[350549381,1737959369212,-113.59261327,0.00019469,2]
[350549382,1737959369236,-500.0,0.00019469,2]
[350549383,1737959369259,-500.0,0.00019469,2]
[350549384,1737959369281,-500.0,0.00019469,2]
[350549385,1737959369306,-500.0,0.00019469,2]
[350549386,1737959369329,-500.0,0.00019469,2]
[350549387,1737959369350,-500.0,0.00019469,2]
[350549388,1737959369376,-300.03995209,0.00019469,2]
[350549389,1737959369401,-500.0,0.00019469,2]
[350549390,1737959369423,-500.0,0.00019469,2]
[350549391,1737959369448,-500.0,0.00019469,2]
[350549392,1737959369470,-500.0,0.00019469,2]
[350549393,1737959369492,-500.0,0.00019469,2]
[350549394,1737959369520,-500.0,0.00019469,2]
[350549395,1737959369546,-500.0,0.00019469,2]
[350549396,1737959369570,-500.0,0.00019469,2]
[350549397,1737959369590,-500.0,0.00019469,2]
[350549398,1737959369613,-500.0,0.00019469,2]
[350549399,1737959369634,-500.0,0.00019469,2]
[350549400,1737959369656,-500.0,0.00019469,2]
[350549401,1737959369680,-500.0,0.00019469,2]
[350549402,1737959369701,-453.63158512,0.00019469,2]
[350549403,1737959369724,-604.7810029,0.00019469,2]
[350549404,1737959369744,-500.0,0.00019469,2]
[350549405,1737959369770,-500.0,0.00019469,2]
[350549406,1737959369794,-500.0,0.00019469,2]
[350549407,1737959369816,-500.0,0.00019469,2]
[350549408,1737959369840,-500.0,0.00019469,2]
[350549409,1737959369864,-500.0,0.00019469,2]
[350549410,1737959369889,-500.0,0.00019469,2]
[350549411,1737959369910,-500.0,0.00019469,2]
[350549412,1737959369936,-500.0,0.00019469,2]
[350549413,1737959369957,-500.0,0.00019469,2]
[350549414,1737959369981,-500.0,0.00019469,2]
[350549415,1737959370002,-500.0,0.00019469,2]
[350549416,1737959370026,-500.0,0.00019469,2]
[350549417,1737959370172,-500.0,0.00019469,2]
[350549418,1737959370199,-500.0,0.00019469,2]
[350549419,1737959370222,-500.0,0.00019469,2]
[350549420,1737959370243,-500.0,0.00019469,2]
[350549421,1737959370267,-500.0,0.00019469,2]
[350549422,1737959370289,-500.0,0.00019469,2]
[350549423,1737959370310,-500.0,0.00019469,2]
[350549424,1737959370334,-500.0,0.00019469,2]
[350549425,1737959370356,-500.0,0.00019469,2]
[350549426,1737959370376,-500.0,0.00019469,2]
[350549427,1737959370400,-500.0,0.00019469,2]
[350549428,1737959370423,-500.0,0.00019469,2]
[350549429,1737959370445,-500.0,0.00019469,2]
[350549430,1737959370466,-500.0,0.00019469,2]
[350549431,1737959370487,-500.0,0.00019469,2]
[350549432,1737959370508,-500.0,0.00019469,2]
[350549433,1737959370528,-500.0,0.00019469,2]
[350549434,1737959370552,-500.0,0.00019469,2]
[350549435,1737959370573,-500.0,0.00019469,2]
[350549436,1737959370593,-500.0,0.00019469,2]
[350549437,1737959370614,-500.0,0.00019469,2]
[350549438,1737959370636,-500.0,0.00019469,2]
[350549439,1737959370657,-500.0,0.00019469,2]
[350549440,1737959370677,-500.0,0.00019469,2]
[350549441,1737959370697,-500.0,0.00019469,2]
[350549442,1737959370718,-500.0,0.00019469,2]
[350549443,1737959370739,-500.0,0.00019469,2]
[350549444,1737959370760,-500.0,0.00019469,2]
[350549445,1737959370786,-500.0,0.00019469,2]
[350549446,1737959370810,-500.0,0.00019469,2]
[350549447,1737959370830,-394.34008367,0.0001947,2]